[Event "40th IND-chT Open 2020"]
[Site "Ahmedabad"]
[Date "2020.02.10"]
[Round "6.2"]
[White "Shyaamnikhil P"]
[Black "Gupta, Abhijeet"]
[Result "1/2-1/2"]
[ECO "A22"]
[WhiteElo "2460"]
[BlackElo "2608"]
[Annotator "RC"]
[PlyCount "74"]
[EventDate "2020.02.05"]
[EventCountry "IND"]
[SourceTitle "playchess.com"]
[Source "ChessBase"]
[SourceQuality "1"]
[TimeControl "5400+30"]

1. c4 {[%emt 0:00:23]} Nf6 {[%emt 0:00:00]} 2. Nc3 {[%emt 0:01:42]} e5 {[%emt 0:00:00]} 3. d3 {[%emt 0:02:12]} Bb4 {[%emt 0:01:25]} 4. Bd2 {[%emt 0:00:41]} O-O {[%emt 0:00:17]} 5. a3 {[%emt 0:02:54]} Bxc3 {[%emt 0:00:05]} 6. Bxc3 {[%emt 0:00:08]} Re8 {[%emt 0:00:03]} 7. Nf3 {[%emt 0:03:50]} e4 {[%emt 0:00:11]} 8. dxe4 {[%emt 0:00:34]} Nxe4 {[%emt 0:00:03]} 9. Rc1 {[%emt 0:00:06]} a5 {[%emt 0:02:40]} 10. Qd4 {[%emt 0:03:29]} Nxc3 {[%emt 0:01:10]} 11. Qxc3 {[%emt 0:00:12]} d6 {[%emt 0:00:25]} 12. e3 {[%emt 0:02:41]} Nd7 {[%emt 0:00:54]} 13. b4 {[%emt 0:10:33]} axb4 {[%emt 0:00:27]} 14. axb4 {[%emt 0:00:06]} Qf6 {[%emt 0:00:22]} 15. Nd4 {[%emt 0:02:22]} c5 {[%emt 0:04:15]} 16. bxc5 {[%emt 0:02:05]} Nxc5 {[%emt 0:04:55]} 17. Bd3 {[%emt 0:08:43]} Qg5 {[%emt 0:01:13]} 18. Kf1 {[%emt 0:01:19]} b6 {[%emt 0:08:36]} 19. h4 {[%emt 0:07:39]} Qf6 {[%emt 0:00:04]} 20. Bb1 {[%emt 0:00:56]} Ne4 {[%emt 0:08:29]} 21. Bxe4 {[%emt 0:01:08]} Rxe4 {[%emt 0:00:03]} 22. Kg1 {[%emt 0:05:38]} Ra2 {[%emt 0:07:17]} 23. Rc2 {[%emt 0:11:24]} Ra5 {[%emt 0:00:25]} 24. Nb3 {[%emt 0:11:40]} Qxc3 {[%emt 0:12:41]} 25. Rxc3 {[%emt 0:00:05]} Ra3 {[%emt 0:00:03]} 26. f3 {[%emt 0:01:02]} Re8 {[%emt 0:00:04]} 27. Kf2 {[%emt 0:01:32]} Be6 {[%emt 0:00:05]} 28. Rhc1 {[%emt 0:04:23]} b5 {[%emt 0:10:12]} 29. Nd2 {[%emt 0:00:11]} Rxc3 {[%emt 0:05:25]} 30. Rxc3 {[%emt 0:00:06]} bxc4 {[%emt 0:00:29]} 31. e4 {[%emt 0:00:06]} f5 {[%emt 0:08:29]} 32. Ke3 {[%emt 0:01:51]} d5 {[%emt 0:01:05]} 33. exd5 {[%emt 0:01:00]} Bxd5+ {[%emt 0:00:34]} 34. Kd4 {[%emt 0:01:05]} Rd8 {[%emt 0:02:11]} 35. Ke3 {[%emt 0:01:07]} Re8+ {[%emt 0:10:40]} 36. Kd4 {[%emt 0:00:07]} Rd8 {[%emt 0:00:17]} 37. Ke3 {[%emt 0:00:06]} Re8+ {[%emt 0:00:20]} 1/2-1/2

[Event "40th IND-chT Open 2020"]
[Site "Ahmedabad"]
[Date "2020.02.10"]
[Round "6.4"]
[White "Swapnil, S. Dhopade"]
[Black "Lalith Babu M R"]
[Result "1/2-1/2"]
[ECO "A49"]
[WhiteElo "2495"]
[BlackElo "2550"]
[Annotator "ChessBase"]
[PlyCount "62"]
[EventDate "2020.02.05"]
[EventCountry "IND"]
[SourceTitle "playchess.com"]
[Source "ChessBase"]
[SourceQuality "1"]
[TimeControl "5400+30"]

1. Nf3 {[%emt 0:00:00]} Nf6 {[%emt 0:00:00]} 2. g3 {[%emt 0:00:00]} g6 {[%emt 0:00:02]} 3. b3 {[%emt 0:00:28]} Bg7 {[%emt 0:00:21]} 4. Bb2 {[%emt 0:00:06]} O-O {[%emt 0:00:15]} 5. Bg2 {[%emt 0:00:04]} d6 {[%emt 0:00:10]} 6. d4 {[%emt 0:00:04]} c5 {[%emt 0:00:05]} 7. O-O {[%emt 0:04:35]} cxd4 {[%emt 0:00:09]} 8. Nxd4 {[%emt 0:00:04]} d5 {[%emt 0:00:09]} 9. c4 {[%emt 0:00:04]} dxc4 {[%emt 0:00:26]} 10. bxc4 {[%emt 0:00:07]} Qb6 {[%emt 0:00:07]} 11. Qc1 {[%emt 0:01:12]} Bd7 {[%emt 0:17:37]} 12. Nd2 {[%emt 0:02:10]} Bh6 {[%emt 0:02:22]} 13. Rb1 {[%emt 0:09:01]} Qa6 {[%emt 0:02:22]} 14. e3 {[%emt 0:14:46]} Rc8 {[%emt 0:10:40]} 15. Ba3 {[%emt 0:16:28]} Nc6 {[%emt 0:00:58]} 16. Nxc6 {[%emt 0:15:52]} Bxc6 {[%emt 0:00:17]} 17. Bxe7 {[%emt 0:02:23]} Bxg2 {[%emt 0:03:25]} 18. Kxg2 {[%emt 0:00:01]} Qc6+ {[%emt 0:15:12]} 19. Kg1 {[%emt 0:03:38]} Ne4 {[%emt 0:00:40]} 20. Qc2 {[%emt 0:08:43]} Nxd2 {[%emt 0:01:43]} 21. Qxd2 {[%emt 0:00:33]} b6 {[%emt 0:00:43]} 22. Rbc1 {[%emt 0:02:03]} Qe4 {[%emt 0:08:11]} 23. Bf6 {[%emt 0:03:37]} Rxc4 {[%emt 0:00:44]} 24. Rxc4 {[%emt 0:00:39]} Qxc4 {[%emt 0:00:04]} 25. Rc1 {[%emt 0:01:08]} Qe6 {[%emt 0:01:56]} 26. Bb2 {[%emt 0:00:25]} Bg7 {[%emt 0:00:15]} 27. Bxg7 {[%emt 0:00:05]} Kxg7 {[%emt 0:00:03]} 28. Rc7 {[%emt 0:00:12]} a6 {[%emt 0:00:11]} 29. a4 {[%emt 0:06:15]} Qf6 {[%emt 0:03:59]} 30. Qd5 {[%emt 0:01:14]} Re8 {[%emt 0:00:42]} 31. Kg2 {[%emt 0:00:47]} Qe6 {[%emt 0:02:33]} 1/2-1/2

[Event "40th IND-chT Open 2020"]
[Site "Ahmedabad"]
[Date "2020.02.10"]
[Round "6.5"]
[White "Krishna C R G"]
[Black "Raja Harshit"]
[Result "1-0"]
[ECO "E05"]
[WhiteElo "2443"]
[BlackElo "2472"]
[Annotator "RC"]
[PlyCount "99"]
[EventDate "2020.02.05"]
[EventCountry "IND"]
[SourceTitle "playchess.com"]
[Source "ChessBase"]
[SourceQuality "1"]
[TimeControl "5400+30"]

1. d4 {[%emt 0:00:00]} Nf6 {[%emt 0:00:00]} 2. c4 {[%emt 0:00:00]} e6 {[%emt 0:00:00]} 3. g3 {[%emt 0:00:00]} d5 {[%emt 0:00:42]} 4. Nf3 {[%emt 0:00:00]} Be7 {[%emt 0:00:07]} 5. Bg2 {[%emt 0:00:00]} O-O {[%emt 0:00:06]} 6. O-O {[%emt 0:00:00]} dxc4 {[%emt 0:00:04]} 7. Qc2 {[%emt 0:00:02]} a6 {[%emt 0:00:11]} 8. a4 {[%emt 0:00:04]} Bd7 {[%emt 0:00:04]} 9. Rd1 {[%emt 0:00:14]} Bc6 {[%emt 0:10:50]} 10. Nc3 {[%emt 0:00:18]} Bxf3 {[%emt 0:02:35]} 11. Bxf3 {[%emt 0:00:02]} Nc6 {[%emt 0:00:15]} 12. Bxc6 {[%emt 0:00:36]} bxc6 {[%emt 0:00:04]} 13. a5 {[%emt 0:00:06]} Rb8 {[%emt 0:00:19]} 14. Qa4 {[%emt 0:00:06]} Rb4 {[%emt 0:09:40]} 15. Qxc6 {[%emt 0:00:06]} Qd6 {[%emt 0:01:15]} 16. Qf3 {[%emt 0:00:08]} Nd5 {[%emt 0:06:57]} 17. e4 {[%emt 0:27:01]} Nxc3 {[%emt 0:00:19]} 18. bxc3 {[%emt 0:00:04]} Rb3 {[%emt 0:00:41]} 19. Bf4 {[%emt 0:00:26]} Qc6 {[%emt 0:08:16]} 20. Be5 {[%emt 0:07:08]} f6 {[%emt 0:04:55]} 21. d5 {[%emt 0:05:49]} Qb7 {[%emt 0:09:50]} 22. d6 {[%emt 0:04:31]} cxd6 {[%emt 0:01:23]} 23. Bxd6 {[%emt 0:00:02]} Rc8 {[%emt 0:14:37]} 24. Rd4 {[%emt 0:15:14]} Rd8 {[%emt 0:06:46]} 25. Rad1 {[%emt 0:08:53]} Bxd6 {[%emt 0:08:53]} 26. Rxd6 {[%emt 0:00:03]} Rxd6 {[%emt 0:00:07]} 27. Rxd6 {[%emt 0:00:06]} Kf7 {[%emt 0:01:48]} 28. Qg4 {[%emt 0:08:15]} Qc8 {[%emt 0:05:38]} 29. e5 {[%emt 0:03:21]} Rxc3 {[%emt 0:03:28]} 30. exf6 {[%emt 0:08:48]} g6 {[%emt 0:04:14]} 31. Qe4 {[%emt 0:10:07]} Rb3 {[%emt 0:00:52]} 32. Rc6 {[%emt 0:01:20]} Qd7 {[%emt 0:00:14]} 33. Rxc4 {[%emt 0:00:36]} Rb5 {[%emt 0:00:44]} 34. Qc2 {[%emt 0:01:02]} Kxf6 {[%emt 0:00:15]} 35. Qc3+ {[%emt 0:00:31]} e5 {[%emt 0:00:09]} 36. Rc6+ {[%emt 0:00:09]} Kg5 {[%emt 0:00:29]} 37. Qe3+ {[%emt 0:02:11]} Kh5 {[%emt 0:01:43]} 38. Rc4 {[%emt 0:00:17]} g5 {[%emt 0:00:00]} 39. g4+ {[%emt 0:01:11]} Kh6 {[%emt 0:00:00]} 40. h4 {[%emt 0:00:11]} Qd8 {[%emt 0:00:09]} 41. hxg5+ {[%emt 0:00:56]} Kg7 {[%emt 0:00:01]} 42. Qa7+ {[%emt 0:00:22]} Kg8 {[%emt 0:00:04]} 43. Qxa6 {[%emt 0:00:33]} Rxa5 {[%emt 0:00:51]} 44. Qb7 {[%emt 0:00:29]} Ra8 {[%emt 0:00:24]} 45. Rc7 {[%emt 0:00:30]} Qf8 {[%emt 0:00:46]} 46. Qd5+ {[%emt 0:00:14]} Kh8 {[%emt 0:00:22]} 47. Qxe5+ {[%emt 0:00:02]} Kg8 {[%emt 0:00:03]} 48. Qe4 {[%emt 0:00:28]} Ra1+ {[%emt 0:00:23]} 49. Kg2 {[%emt 0:00:02]} Qa8 {[%emt 0:00:07]} 50. Rb7 {[%emt 0:00:38]} 1-0

[Event "40th IND-chT Open 2020"]
[Site "Ahmedabad"]
[Date "2020.02.10"]
[Round "6.7"]
[White "Thejkumar, M. S."]
[Black "Visakh N R"]
[Result "0-1"]
[ECO "D37"]
[WhiteElo "2438"]
[BlackElo "2518"]
[Annotator "ChessBase"]
[PlyCount "56"]
[EventDate "2020.02.05"]
[EventCountry "IND"]
[SourceTitle "playchess.com"]
[Source "ChessBase"]
[SourceQuality "1"]
[TimeControl "5400+30"]

1. d4 {[%emt 0:00:00]} Nf6 {[%emt 0:00:00]} 2. Nf3 {[%emt 0:00:00]} e6 {[%emt 0:01:27]} 3. c4 {[%emt 0:00:05]} d5 {[%emt 0:00:07]} 4. Nc3 {[%emt 0:00:21]} a6 {[%emt 0:00:16]} 5. cxd5 {[%emt 0:16:56]} exd5 {[%emt 0:00:40]} 6. Bg5 {[%emt 0:00:05]} Be6 {[%emt 0:00:06]} 7. e3 {[%emt 0:00:36]} Nbd7 {[%emt 0:03:53]} 8. Bd3 {[%emt 0:06:23]} h6 {[%emt 0:08:05]} 9. Bf4 {[%emt 0:00:26]} g5 {[%emt 0:01:33]} 10. Bg3 {[%emt 0:00:26]} Nh5 {[%emt 0:00:36]} 11. e4 {[%emt 0:11:47]} c6 {[%emt 0:13:50]} 12. exd5 {[%emt 0:03:12]} cxd5 {[%emt 0:01:04]} 13. O-O {[%emt 0:09:12]} Nxg3 {[%emt 0:03:00]} 14. hxg3 {[%emt 0:00:10]} Bd6 {[%emt 0:01:14]} 15. Re1 {[%emt 0:01:53]} Kf8 {[%emt 0:01:06]} 16. Rc1 {[%emt 0:03:34]} Kg7 {[%emt 0:11:09]} 17. Na4 {[%emt 0:05:09]} Qf6 {[%emt 0:11:50]} 18. Nc5 {[%emt 0:04:39]} Nxc5 {[%emt 0:09:24]} 19. dxc5 {[%emt 0:00:20]} Bc7 {[%emt 0:00:03]} 20. Bc2 {[%emt 0:05:57]} Rae8 {[%emt 0:01:47]} 21. Qd3 {[%emt 0:03:18]} h5 {[%emt 0:04:06]} 22. b4 {[%emt 0:13:26]} h4 {[%emt 0:01:31]} 23. gxh4 {[%emt 0:04:59]} g4 {[%emt 0:01:04]} 24. Ng5 {[%emt 0:01:45]} Rxh4 {[%emt 0:00:49]} 25. g3 {[%emt 0:04:29]} Rh2 {[%emt 0:02:08]} 26. Kxh2 {[%emt 0:01:44]} Qxf2+ {[%emt 0:00:02]} 27. Kh1 {[%emt 0:00:08]} Rh8+ {[%emt 0:00:02]} 28. Nh7 {[%emt 0:00:35]} f5 {[%emt 0:00:05]} 0-1

[Event "40th IND-chT Open 2020"]
[Site "Ahmedabad"]
[Date "2020.02.10"]
[Round "6.8"]
[White "Sai Agni Jeevitesh, J."]
[Black "Laxman, R.R."]
[Result "1-0"]
[ECO "E52"]
[WhiteElo "2310"]
[BlackElo "2432"]
[Annotator "ChessBase"]
[PlyCount "87"]
[EventDate "2020.02.05"]
[EventCountry "IND"]
[SourceTitle "playchess.com"]
[Source "ChessBase"]
[SourceQuality "1"]
[TimeControl "5400+30"]

1. d4 {[%emt 0:00:00]} Nf6 {[%emt 0:00:00]} 2. c4 {[%emt 0:00:00]} e6 {[%emt 0:00:00]} 3. Nc3 {[%emt 0:00:00]} Bb4 {[%emt 0:00:00]} 4. e3 {[%emt 0:00:00]} d5 {[%emt 0:00:11]} 5. Bd2 {[%emt 0:00:08]} O-O {[%emt 0:01:32]} 6. Nf3 {[%emt 0:00:10]} b6 {[%emt 0:01:01]} 7. cxd5 {[%emt 0:00:48]} exd5 {[%emt 0:00:15]} 8. Rc1 {[%emt 0:00:15]} Bb7 {[%emt 0:02:13]} 9. Bd3 {[%emt 0:00:07]} Nbd7 {[%emt 0:00:35]} 10. O-O {[%emt 0:00:20]} a6 {[%emt 0:01:57]} 11. Ne5 {[%emt 0:00:21]} Bd6 {[%emt 0:06:27]} 12. f4 {[%emt 0:00:39]} c5 {[%emt 0:00:47]} 13. Qf3 {[%emt 0:01:37]} cxd4 {[%emt 0:02:36]} 14. exd4 {[%emt 0:00:32]} b5 {[%emt 0:00:10]} 15. Qh3 {[%emt 0:12:42]} Nb6 {[%emt 0:01:30]} 16. Be1 {[%emt 0:11:55]} Ne4 {[%emt 0:03:24]} 17. Bh4 {[%emt 0:02:25]} Qe8 {[%emt 0:04:36]} 18. Nxe4 {[%emt 0:19:45]} dxe4 {[%emt 0:00:43]} 19. Bc2 {[%emt 0:00:01]} f6 {[%emt 0:07:58]} 20. Bb3+ {[%emt 0:01:24]} Kh8 {[%emt 0:00:17]} 21. Ng4 {[%emt 0:00:16]} Bd5 {[%emt 0:02:11]} 22. Ne3 {[%emt 0:06:18]} Bxb3 {[%emt 0:00:37]} 23. axb3 {[%emt 0:00:02]} Bb4 {[%emt 0:01:28]} 24. Be1 {[%emt 0:07:32]} Bxe1 {[%emt 0:00:34]} 25. Rfxe1 {[%emt 0:00:01]} Qd8 {[%emt 0:07:08]} 26. Rc5 {[%emt 0:06:15]} Rf7 {[%emt 0:05:31]} 27. d5 {[%emt 0:03:02]} Rc8 {[%emt 0:12:12]} 28. b4 {[%emt 0:03:27]} Rfc7 {[%emt 0:01:19]} 29. Rec1 {[%emt 0:01:45]} Nc4 {[%emt 0:00:15]} 30. Nxc4 {[%emt 0:05:00]} Rxc5 {[%emt 0:01:58]} 31. bxc5 {[%emt 0:00:09]} Rxc5 {[%emt 0:00:10]} 32. Qe6 {[%emt 0:02:55]} bxc4 {[%emt 0:01:30]} 33. d6 {[%emt 0:01:06]} Qg8 {[%emt 0:02:38]} 34. f5 {[%emt 0:03:26]} e3 {[%emt 0:01:17]} 35. Rd1 {[%emt 0:02:41]} e2 {[%emt 0:01:54]} 36. Qxe2 {[%emt 0:00:33]} Re5 {[%emt 0:00:10]} 37. Qf3 {[%emt 0:01:54]} Qd8 {[%emt 0:01:05]} 38. d7 {[%emt 0:00:53]} Kg8 {[%emt 0:00:04]} 39. Qc6 {[%emt 0:00:52]} Kf8 {[%emt 0:00:04]} 40. Qxc4 {[%emt 0:02:19]} a5 {[%emt 0:00:39]} 41. Rd5 {[%emt 0:02:03]} Rxd5 {[%emt 0:00:45]} 42. Qxd5 {[%emt 0:00:02]} Qb6+ {[%emt 0:00:07]} 43. Kf1 {[%emt 0:00:44]} Ke7 {[%emt 0:00:11]} 44. Qe6+ {[%emt 0:00:22]} 1-0

[Event "40th IND-chT Open 2020"]
[Site "Ahmedabad"]
[Date "2020.02.10"]
[Round "6.13"]
[White "Eshwanth Dev, Kumar J"]
[Black "Prasenjit Dutta"]
[Result "1-0"]
[ECO "C41"]
[WhiteElo "1850"]
[BlackElo "2285"]
[Annotator "RC"]
[PlyCount "189"]
[EventDate "2020.02.05"]
[EventCountry "IND"]
[SourceTitle "playchess.com"]
[Source "ChessBase"]
[SourceQuality "1"]
[TimeControl "5400+30"]

1. e4 {[%emt 1:30:30]} d6 {[%emt 1:30:30]} 2. d4 {[%emt 0:00:30]} Nd7 {[%emt 0:00:30]} 3. Nc3 {[%emt 0:00:30]} e5 {[%emt 0:00:30]} 4. Nf3 {[%emt 0:00:30]} c6 {[%emt 0:00:30]} 5. a4 {[%emt 0:00:30]} Be7 {[%emt 0:00:30]} 6. h3 {[%emt 0:00:30]} Ngf6 {[%emt 0:00:30]} 7. Bc4 {[%emt 0:00:30]} h6 {[%emt 0:00:30]} 8. Ba2 {[%emt 0:00:30]} Qc7 {[%emt 0:00:30]} 9. Be3 {[%emt 0:00:30]} Nf8 {[%emt 0:00:30]} 10. Qd2 {[%emt 0:00:30]} a6 {[%emt 0:00:30]} 11. a5 {[%emt 0:00:30]} Ng6 {[%emt 0:00:30]} 12. O-O {[%emt 0:00:30]} Be6 {[%emt 0:00:30]} 13. Bxe6 {[%emt 0:00:30]} fxe6 {[%emt 0:00:30]} 14. dxe5 {[%emt 0:00:30]} dxe5 {[%emt 0:00:30]} 15. Qe2 {[%emt 0:00:30]} c5 {[%emt 0:00:30]} 16. Qc4 {[%emt 0:00:30]} Qc6 {[%emt 0:00:30]} 17. Ne1 {[%emt 0:00:30]} O-O {[%emt 0:00:30]} 18. Nd3 {[%emt 0:00:30]} Rac8 {[%emt 0:00:30]} 19. f3 {[%emt 0:00:30]} Kh7 {[%emt 0:00:30]} 20. g3 {[%emt 0:00:30]} Nd7 {[%emt 0:00:30]} 21. Kg2 {[%emt 0:00:30]} Rf6 {[%emt 0:00:30]} 22. h4 {[%emt 0:00:30]} Nh8 {[%emt 0:00:30]} 23. Nf2 {[%emt 0:00:30]} Rff8 {[%emt 0:00:30]} 24. Ng4 {[%emt 0:00:30]} Nf7 {[%emt 0:00:30]} 25. Rfd1 {[%emt 0:00:30]} Nf6 {[%emt 0:00:30]} 26. Nf2 {[%emt 0:00:30]} Rg8 {[%emt 0:00:30]} 27. Rh1 {[%emt 0:00:30]} Rge8 {[%emt 0:00:30]} 28. Na4 {[%emt 0:00:30]} Bf8 {[%emt 0:00:30]} 29. Nb6 {[%emt 0:00:30]} Rc7 {[%emt 0:00:30]} 30. Nd3 {[%emt 0:00:30]} Nd7 {[%emt 0:00:30]} 31. Nxd7 {[%emt 0:00:30]} Qxd7 {[%emt 0:00:30]} 32. Bf2 {[%emt 0:00:30]} Bd6 {[%emt 0:00:30]} 33. Rhd1 {[%emt 0:00:30]} Qe7 {[%emt 0:00:30]} 34. Be3 {[%emt 0:00:30]} Rg8 {[%emt 0:00:30]} 35. Rh1 {[%emt 0:00:30]} Nd8 {[%emt 0:00:30]} 36. h5 {[%emt 0:00:30]} Rf8 {[%emt 0:00:30]} 37. Rh4 {[%emt 0:00:30]} Rf6 {[%emt 0:00:30]} 38. c3 {[%emt 0:00:30]} Qf8 {[%emt 0:00:30]} 39. Ne1 {[%emt 0:00:30]} Nc6 {[%emt 0:00:30]} 40. b3 {[%emt 0:00:30]} Rcf7 {[%emt 0:00:30]} 41. Rg4 {[%emt 0:00:30]} Rc7 {[%emt 0:00:30]} 42. Ra2 {[%emt 0:00:30]} Be7 {[%emt 0:00:30]} 43. Ra1 {[%emt 0:00:30]} Rd7 {[%emt 0:00:30]} 44. f4 {[%emt 0:00:30]} Qd8 {[%emt 0:00:30]} 45. Qe2 {[%emt 0:00:30]} exf4 {[%emt 0:00:30]} 46. gxf4 {[%emt 0:00:30]} Nxa5 {[%emt 0:00:30]} 47. Nf3 {[%emt 0:00:30]} Nc6 {[%emt 0:00:30]} 48. Rg1 {[%emt 0:00:30]} Bf8 {[%emt 0:00:30]} 49. Nh4 {[%emt 0:00:30]} Qa5 {[%emt 0:00:30]} 50. Qc2 {[%emt 0:00:30]} e5 {[%emt 0:00:30]} 51. Kh3 {[%emt 0:00:30]} Qb5 {[%emt 0:00:30]} 52. Ng6 {[%emt 0:00:30]} Bd6 {[%emt 0:00:30]} 53. Rd1 {[%emt 0:00:30]} Rdf7 {[%emt 0:00:30]} 54. Nh4 {[%emt 0:00:30]} Ne7 {[%emt 0:00:30]} 55. Nf3 {[%emt 0:00:30]} Kh8 {[%emt 0:00:30]} 56. Rxd6 {[%emt 0:00:30]} Qf1+ {[%emt 0:00:30]} 57. Qg2 {[%emt 0:00:30]} Qxg2+ {[%emt 0:00:30]} 58. Kxg2 {[%emt 0:00:30]} Rxd6 {[%emt 0:00:30]} 59. Nxe5 {[%emt 0:00:30]} Rff6 {[%emt 0:00:30]} 60. Bxc5 {[%emt 0:00:30]} Rd2+ {[%emt 0:00:30]} 61. Kf3 {[%emt 0:00:30]} Nc6 {[%emt 0:00:30]} 62. Ng6+ {[%emt 0:00:30]} Kg8 {[%emt 0:00:30]} 63. e5 {[%emt 0:00:30]} Rf5 {[%emt 0:00:30]} 64. Rh4 {[%emt 0:00:30]} Rd1 {[%emt 0:00:30]} 65. Ke4 {[%emt 0:00:30]} Rf7 {[%emt 0:00:30]} 66. Bd6 {[%emt 0:00:30]} Nd8 {[%emt 0:00:30]} 67. Ne7+ {[%emt 0:00:30]} Kh7 {[%emt 0:00:30]} 68. f5 {[%emt 0:00:30]} Re1+ {[%emt 0:00:30]} 69. Kd5 {[%emt 0:00:30]} Nc6 {[%emt 0:00:30]} 70. Nxc6 {[%emt 0:00:30]} bxc6+ {[%emt 0:00:30]} 71. Ke6 {[%emt 0:00:30]} Rb7 {[%emt 0:00:30]} 72. b4 {[%emt 0:00:30]} Re3 {[%emt 0:00:30]} 73. Rc4 {[%emt 0:00:30]} Rh3 {[%emt 0:00:30]} 74. Rxc6 {[%emt 0:00:30]} Rxh5 {[%emt 0:00:30]} 75. Rxa6 {[%emt 0:00:30]} Rg5 76. f6 {[%emt 0:00:30]} h5 {[%emt 0:01:00]} 77. f7 {[%emt 0:00:30]} Rg6+ {[%emt 0:00:30]} 78. Kd5 {[%emt 0:00:30]} Rxf7 {[%emt 0:00:30]} 79. b5 {[%emt 0:00:30]} h4 {[%emt 0:00:30]} 80. b6 {[%emt 0:00:30]} h3 {[%emt 0:00:30]} 81. Ra1 {[%emt 0:00:30]} Rh6 {[%emt 0:00:30]} 82. Kc6 {[%emt 0:00:30]} g5 {[%emt 0:00:30]} 83. b7 {[%emt 0:00:30]} Rxb7 {[%emt 0:00:30]} 84. Kxb7 {[%emt 0:00:30]} g4 {[%emt 0:00:30]} 85. Kc7 {[%emt 0:00:30]} h2 {[%emt 0:00:30]} 86. e6 {[%emt 0:00:30]} Rxe6 {[%emt 0:00:30]} 87. Bxh2 {[%emt 0:00:30]} Re3 {[%emt 0:00:30]} 88. Rc1 {[%emt 0:00:30]} g3 {[%emt 0:00:30]} 89. Bg1 {[%emt 0:00:30]} Rf3 {[%emt 0:00:30]} 90. Bd4 {[%emt 0:00:30]} Kg6 {[%emt 0:00:30]} 91. Kd6 {[%emt 0:00:30]} Kf5 {[%emt 0:00:30]} 92. Rg1 {[%emt 0:00:30]} Kg4 {[%emt 0:00:30]} 93. Be5 {[%emt 0:00:30]} Rd3+ {[%emt 0:00:30]} 94. Ke6 {[%emt 0:00:30]} Kh3 {[%emt 0:00:30]} 95. Rxg3+ {[%emt 0:00:30]} 1-0